Cogmind - Beta 14 @@@ ROGUE MODE // 2024.09.18 @ 13:43:24 Player: Dull Result: Destroyed by HW-IIK(R) with Subdweller Laser Performance ------------- Evolutions (0) 0 Regions Visited (2) 400 Robots Destroyed (33) 165 Value Destroyed (654) 654 Prototype IDs (0) 0 Alien Tech Used (0) 0 Bonus (0) 0 TOTAL SCORE: 1219 Bonus ------- None Cogmind --------- Core Integrity 0/250 Matter 235/300 Energy 250/250 System Corruption 0% Temperature Hot (253) Movement Treading (160) Location -10/Subcaves Parts ------- > --- POWER (1) -------- Ion Engine > --- PROPULSION (2) --- Light Treads Light Treads > --- UTILITY (2) ------ Large Storage Unit Makeshift Light Armor Plating > --- WEAPON (2) ------- Subdweller Machine Gun Battle Cannon > --- INVENTORY (15) --- Ion Engine Ion Engine Subdweller Power Source Light Treads Heat Sink Large Storage Unit ECM Suite Grenade Launcher Grenade Launcher Grenade Launcher Grenade Launcher Dirty Datajack (20) Mining Laser Peak State ------------ > --- POWER ------------ Ion Engine > --- PROPULSION ------- Light Treads Light Treads > --- UTILITY ---------- Large Storage Unit Makeshift Light Armor Plating > --- WEAPON ----------- Subdweller Machine Gun Battle Cannon > --- INVENTORY -------- Ion Engine Ion Engine Subdweller Power Source Light Treads Light Treads Heat Sink Large Storage Unit ECM Suite Grenade Launcher Grenade Launcher Grenade Launcher Grenade Launcher Dirty Datajack Mining Laser [Rating: 14] Favorites ----------- Power Ion Engine Engine Ion Engine Propulsion Light Treads Treads Light Treads Leg Aluminum Leg Utility Large Storage Unit Device Seismic Detector Storage Large Storage Unit Protection Makeshift Light Armor Plating Weapon Light Cannon Energy Gun Small Laser Ballistic Gun Assault Rifle Ballistic Cannon Light Cannon Launcher Grenade Launcher Build | -11 -10 -10 ------- Run | Yrd Mat Sub Slots Evolved . | . . . Power . | . . . Propulsion . | . . . Utility . | . . . Weapon . | . . . Parts Attached 22 | 3 13 6 Power 2 | . 2 . Engine 2 | . 2 . Core . | . . . Reactor . | . . . Propulsion 7 | 2 3 2 Treads 7 | 2 3 2 Leg . | . . . Wheel . | . . . Hover . | . . . Flight . | . . . Utility 5 | 1 3 1 Device 2 | 1 1 . Storage 1 | . 1 . Processor . | . . . Hackware . | . . . Protection 2 | . 1 1 Artifact . | . . . Weapon 8 | . 5 3 Energy Gun 1 | . . 1 Energy Cannon . | . . . Ballistic Gun 2 | . 1 1 Ballistic Cannon 4 | . 3 1 Launcher 1 | . 1 . Special Weapon . | . . . Impact Weapon . | . . . Slashing Weapon . | . . . Piercing Weapon . | . . . Special Melee Weapon . | . . . Unidentified Prototypes . | . . . Parts Lost 5 | . 1 4 Power . | . . . Propulsion 2 | . . 2 Utility 1 | . 1 . Weapon 2 | . . 2 Highest Loss Streak 2 | . 1 2 To Critical Strikes . | . . . Average Slot Usage (%) 95 | . 92 98 Engine 14 | . 14 14 Treads 27 | . 27 27 Device 6 | . 5 9 Storage 14 | . 14 14 Protection 3 | . 2 4 Energy Gun 4 | . . 11 Ballistic Gun 10 | . 15 2 Ballistic Cannon 12 | . 12 13 Peak Build Rating 14 | 9 9 14 Average Rating 8 | 7 7 10 On Entrance 7 | 6 9 8 Naked Turns . | . . . Heaviest Build 36 | 13 31 36 Greatest Support 40 | 40 40 40 Greatest Overweight (x) . | . . . Average Overweight (x) . | . . . Largest Inventory Capacity 15 | 8 15 15 Average Capacity 12 | 8 10 15 Most Carried 15 | 8 15 15 Average Carried 11 | 5 9 14 Final Capacity 15 | 8 15 15 Final Carried 15 | 4 15 13 Class Distribution -------------------- 100% | Mutant Dominant Class ---------------- Mutant | -10/Materials Mutant | -10/Subcaves Resources | -11 -10 -10 ----------- Run | Yrd Mat Sub Matter Collected 979 | 211 521 247 Remotely . | . . . Salvage Created 824 | 27 560 237 Parts 65 | 3 42 20 Haulers Intercepted 2 | . 2 . Recyclers Shooed 2 | 1 1 . Parts Field Recycled . | . . . Retrieved Matter . | . . . Parts Self-Destructed 13 | . . 13 Prevented . | . . . Kills | -11 -10 -10 ------- Run | Yrd Mat Sub Combat Hostiles Destroyed 24 | . 17 7 Guns 13 | . 11 2 Cannons 11 | . 6 5 Classes Destroyed 9 | 1 6 2 Worker 2 | . 2 . Builder 1 | . 1 . Tunneler 1 | 1 . . Hauler 2 | . 2 . Watcher 3 | . 3 . Swarmer 12 | . 12 . Grunt 5 | . 5 . Sentry 1 | . . 1 Subdweller 6 | . . 6 Best Kill Streak 8 | 1 8 2 Combat Bots Only 8 | . 8 2 Max Kills in Single Turn 2 | 1 2 1 Gunslinging . | . . . Exploded . | . . . Melee . | . . . Uniques/NPCs Destroyed . | . . . Combat | -11 -10 -10 -------- Run | Yrd Mat Sub Hostile Shots Fired 145 | . 94 51 Missed 39 | . 27 12 Damage Taken 1501 | . 723 778 Core 270 | . 137 133 Absorbed by Shields . | . . . Regen/Repaired (Parts) 306 | . 306 . Core Remaining (%) 100 | 100 . . Volleys Fired 119 | 6 52 61 Largest 2 | 2 2 2 Hottest 79 | 40 55 79 Shots Fired 218 | 12 101 105 Gun 133 | 12 61 60 Cannon 82 | . 37 45 Launcher 3 | . 3 . Special . | . . . Kinetic 172 | 12 98 62 Thermal 43 | . . 43 Explosive 3 | . 3 . Electromagnetic . | . . . Robot Hit Streak 23 | 3 11 23 Robot Miss Streak 3 | 2 3 1 Penetration Max . | . . . Secondary Targets . | . . . Shots Hit Robots 146 | 6 58 82 Core Hits 58 | 2 32 24 Critical Kills . | . . . Critical Parts Destroyed 1 | . 1 . Critical Strikes 3 | . 2 1 Destroy 1 | . 1 . Blast 2 | . 1 1 Melee Attacks . | . . . Impact . | . . . Slashing . | . . . Piercing . | . . . Sneak Attacks . | . . . Combat Hostiles . | . . . Follow-up Attacks . | . . . Damage Inflicted 2261 | 85 935 1241 Guns 1105 | 85 485 535 Cannons 1081 | . 375 706 Explosions 75 | . 75 . Melee . | . . . Ramming . | . . . Kinetic 1774 | 85 860 829 Thermal 412 | . . 412 Explosive 75 | . 75 . Electromagnetic . | . . . Impact . | . . . Slashing . | . . . Piercing . | . . . Highest Corruption . | . . . Average Corruption . | . . . Corruption Purged . | . . . Corruption Blocked . | . . . Overload Shots . | . . . Overflow Damage 18 | . 18 . Projectiles 18 | . 18 . Explosions . | . . . Melee . | . . . Knockbacks 9 | . 1 8 Impact . | . . . Kinetic 9 | . 1 8 Secondary . | . . . Self-Inflicted Damage . | . . . Shots . | . . . Rammed . | . . . Targets Rammed . | . . . Kicked . | . . . Crushed . | . . . Highest Temperature 277 | . 66 277 Average Temperature 42 | . 30 212 Received Heat Transfer 682 | . 153 529 Siege Activations . | . . . Robots Corrupted . | . . . Combat Hostiles . | . . . Parts Fried . | . . . Impact Corruptions . | . . . Robots Melted . | . . . Combat Hostiles . | . . . Parts Melted 1 | . . 1 Heat Transferred 950 | . . 950 Parts Sabotaged . | . . . Parts Stolen . | . . . Parts Stripped . | . . . Power Chain Reactions . | . . . Alert | -11 -10 -10 ------- Run | Yrd Mat Sub Peak Influence 247 | 5 247 . Initial 3 | . 3 . Average 68 | 2 70 . Maximum Alert Level 1 | . 1 . Low Security (%) 90 | 100 90 . Level 1 9 | . 9 . Level 2 . | . . . Level 3 . | . . . Level 4 . | . . . Level 5 . | . . . High Security . | . . . Max Security . | . . . Squads Dispatched 1 | . 1 . Investigation 1 | . 1 . Extermination . | . . . Reinforcement . | . . . Assault . | . . . Garrison . | . . . Intercept . | . . . Searches Triggered . | . . . Construction Impeded . | . . . Haulers Reinforced . | . . . Active Scanning Responses . | . . . Cargo Convoy Interrupts . | . . . Stealth | -11 -10 -10 --------- Run | Yrd Mat Sub Distress Signals . | . . . Communications Jammed . | . . . Distress Signals . | . . . Times Spotted 33 | . 24 9 Peak Tracking Total 5 | . 5 2 Tactical Retreats . | . . . Traps | -11 -10 -10 ------- Run | Yrd Mat Sub Traps Triggered 4 | . 4 . Indirectly . | . . . Trap Hack Attempts . | . . . Triggered . | . . . Disarmed . | . . . Reprogrammed . | . . . Reused . | . . . Traps Extracted . | . . . Installed . | . . . Triggered . | . . . Machines | -11 -10 -10 ---------- Run | Yrd Mat Sub Machines Disabled . | . . . Max in Single Turn . | . . . Machines Repaired . | . . . Machines Dismantled . | . . . Machines Sabotaged . | . . . Overloaded Fab Kills . | . . . Hacking | -11 -10 -10 --------- Run | Yrd Mat Sub Machines Accessed 10 | . 9 1 Terminals 8 | . 8 . Fabricators . | . . . Repair Stations 1 | . 1 . Recycling Units . | . . . Scanalyzers . | . . . Garrison Access . | . . . Total Hacks 40 | . 37 3 Successful 24 | . 21 3 Failed 16 | . 16 . Catastrophic 2 | . 2 . Database Lockouts . | . . . Manual 24 | . 24 . Terminals 28 | . 28 . Fabricators . | . . . Repair Stations 9 | . 9 . Recycling Units . | . . . Scanalyzers . | . . . Garrison Access . | . . . Terminal Hacks 9 | . 6 3 Record 3 | . . 3 Part Schematic 1 | . 1 . Robot Analysis 3 | . 3 . Unreport Threat 1 | . 1 . Patrol Status 1 | . 1 . Fabricator Hacks . | . . . Repair Station Hacks 8 | . 8 . Scan Component 4 | . 4 . Repair 4 | . 4 . Recycling Unit Hacks . | . . . Scanalyzer . | . . . Garrison Access Hacks . | . . . Unauthorized Hacks 7 | . 7 . Terminals 7 | . 7 . Botnet 7 | . 7 . Fabricators . | . . . Repair Stations . | . . . Recycling Units . | . . . Scanalyzers . | . . . Garrison Access . | . . . Data Cores Recovered . | . . . Used . | . . . Hacking Detections 9 | . 9 . Full Trace Events 3 | . 3 . Feedback Events . | . . . Feedback Blocked . | . . . Robot Schematics Acquired . | . . . Robots Built . | . . . Authchips . | . . . Time . | . . . Total Robot Build Rating . | . . . Part Schematics Acquired 1 | . 1 . Parts Built . | . . . Authchips . | . . . Time . | . . . Total Part Build Rating . | . . . Parts Repaired 4 | . 4 . Time 104 | . 104 . Parts Recycled . | . . . Recycled Matter . | . . . Retrieved Matter . | . . . Retrieved Components . | . . . Parts Scanalyzed . | . . . Part Schematics Acquired . | . . . Parts Damaged . | . . . Bothacking | -11 -10 -10 ------------ Run | Yrd Mat Sub Used RIF Installer . | . . . Robots Hacked . | . . . Non-combat . | . . . Combat . | . . . Robot Hacks Applied . | . . . Relay Couplers Released . | . . . Fabnet Peak Effective % . | . . . Robots Rewired . | . . . Allies Hacked . | . . . Hacks Repelled . | . . . Allies | -11 -10 -10 -------- Run | Yrd Mat Sub Total Allies . | . . . Largest Group . | . . . Highest-Rated Group . | . . . Highest-Rated Ally . | . . . Total Orders . | . . . Ally Attacks . | . . . Total Damage . | . . . Kills . | . . . Allies Corrupted . | . . . Allies Melted . | . . . Intel | -11 -10 -10 ------- Run | Yrd Mat Sub Robot Analysis Total 3 | . 3 . Derelict Logs Recovered 1 | . . 1 Drone Launches . | . . . Drone Recoveries . | . . . Exploration | -11 -10 -10 ------------- Run | Yrd Mat Sub Turns Passed 3696 | 61 2256 1379 Spaces Moved 1911 | 27 1147 737 Core . | . . . Treads 1893 | 9 1147 737 Legs 18 | 18 . . Wheels . | . . . Hover . | . . . Flight . | . . . Fastest Speed 120 | 120 160 160 Average Speed 159 | 133 160 160 Slowest Speed 160 | 160 160 160 Overloaded Moves . | . . . Propulsion Burnouts . | . . . Robots Hopped . | . . . Cave-ins Triggered . | . . . Exploration Rate (%) 49 | 3 99 46 Regions Visited 2 Branch Regions 1 Pre-discovered Areas . | . . . Known Exits Taken . | . . . Unknown Exits Taken 2 | 1 1 . Scrap Searched . | . . . Spaces Dug 8 | . 8 . Terrain Destroyed 21 | . 21 . Melee . | . . . Projectile . | . . . AOE 21 | . 21 . Terrain Rammed . | . . . Walls Destroyed . | . . . Machines Disabled . | . . . Actions | -11 -10 -10 --------- Run | Yrd Mat Sub Total 2344 | 41 1471 832 Wait 250 | . 225 25 Move 1909 | 26 1146 737 Hop . | . . . Pick Up 25 | 2 21 2 Fast Attach 8 | 1 6 1 Attach 3 | . . 3 Detach . | . . . Swap 11 | 2 7 2 Drop 19 | 4 14 1 Fire 119 | 6 52 61 Melee . | . . . Ram . | . . . Kick . | . . . Crush . | . . . Escape Stasis . | . . . Rewire . | . . . Trap . | . . . Miscellaneous . | . . . Route ------- -11/Scrapyard -10/Materials (discovered 5 exits: [*Mat x3] / [*Min] / *Sub) -10/Subcaves (discovered 2 exits: [*Mat] / Rec) History --------- Turn | Location | Event 1 | -11/Scrapyard | Discovered new exit (range 3) 62 | -11/Scrapyard | Entered Materials 308 | -10/Materials | Build established: Mutant 353 | -10/Materials | Discovered new exit (range 13) 456 | -10/Materials | Discovered new exit (range 13) 623 | -10/Materials | Discovered new exit (range 5) 661 | -10/Materials | Destroyed 8 combat bots 731 | -10/Materials | Repaired Assault Rifle 759 | -10/Materials | Repaired Lgt. Cannon 878 | -10/Materials | Discovered new exit (range 5) 1045 | -10/Materials | Repaired Lgt. Treads 1073 | -10/Materials | Repaired Lgt. Treads 1174 | -10/Materials | Discovered new exit (range 8) 1333 | -10/Materials | Core integrity fell below 50% 2318 | -10/Materials | Entered Subcaves 2431 | -10/Subcaves | A swath of the cavern ceiling suddenly collapsed 2435 | -10/Subcaves | Core integrity fell below 20% 2602 | -10/Subcaves | Visited Clippyterm 2607 | -10/Subcaves | Learned Research machine intel 3148 | -10/Subcaves | Shifting Twisted Machinery released Enh. Flamer 3207 | -10/Subcaves | Shifting Twisted Machinery released Mak. Light Armor Plating 3306 | -10/Subcaves | Shifting Twisted Machinery released Piercing Trap 3313 | -10/Subcaves | Shifting Twisted Machinery released Mak. Flight Unit 3558 | -10/Subcaves | Discovered new exit (range 2) 3626 | -10/Subcaves | Identified exit to Recycling 3692 | -10/Subcaves | Disturbed a concealed Subdweller 3695 | -10/Subcaves | Disturbed a concealed Subdweller 3697 | -10/Subcaves | Destroyed by HW-IIK(R) with Subdweller Laser Last Messages --------------- 03509_ Y9-G6Z(R) knocked back. 03512_ Y9-G6Z(R) destroyed. 03518_ Acquired 13 matter. 03526_ Subatomizers dissect the Sub. Power Source. 03536_ Acquired 4 matter. 03539_ Acquired Sub. Machine Gun. 03558_ EXIT=FOUND 03626_ Acquired derelict log, extracted data. Loading 1 Recycling entrance... 03659_ Lgt. Treads destroyed. 03661_ 4G-JG9(R) destroyed. 03668_ Acquired 11 matter. 03669_ Acquired 3 matter. 03671_ Acquired 4 matter. 03692_ T7-WW9(R) angrily emerges from the Twisted Machinery. 03692_ T7-WW9(R) knocked back. 03693_ Acquired 4 matter. 03693_ Critical hit (Meltdown: +280). 03695_ HW-IIK(R) angrily emerges from the Twisted Machinery. 03696_ T7-WW9(R) affixes Scrap Shield Fragment to Scrap Shield. Map ----- +----------------------------------------------------+ | ?????????????????????????????????????????????????? | | ?????????????????????????????????????????????????? | | ?????????????????????????????????????????????????? | | ?????????????????????????????????????????????????? | | ?????????????????????????????????????????????????? | | ?????????????????????????????????????????????????? | | ?????????????????????????????????????????????????? | | ?????????????????????????????????????????????????? | | ?????????????????????????????????????????????????? | | ?????????????????????????????????????????????????? | | ?????????????????????????????????????????????????? | | ?????????????????????????????????????????????????? | | ?????????????????????????????????????????????????? | | ?????????????????????????????????????????????????? | | ?????????#?######????#####?????###???????????????? | | ?????????# # ###### ###??# ##??????????????? | | ???????? ### #??????????????? | | ???????????? #??????????????? | | ?????????????# #?# ##?????????????? | | ?????????????# #?# ## ####??????????? | | ????????????## #?# # ##?????????? | | ?????????##?# ### ##### *# #?????????? | | ?????????# ## #<$<#! % #?????????? | | ?????????# # <&$<# ## #?????????? | | ?????????# ## #RR<$# #??????????????? | | ?????????# ## ##@<<# #??????????????? | | ?????????### ### #### ##??????????????? | | ??????????# # ##?### ##???????????????? | | ?????????## ##???#### ###????????????????? | | ?????????# #??????## ##??????????????????? | | ?????????# ## #???????###???????????????????? | | ?????????# ### #?????????????????????????????? | | ?????????# ######?????????????????????????????? | | ?????????## ##???????????####?????????????????? | | ??????????# #?###??????## ##????????????????? | | ??????????## ### ##????## #????????????????? | | ???????????## "" "###### ###??????????????? | | ???????????## """ " #??????????????? | | ???????????# """"" " ## ##?????????????? | | ???????????# """##"##""" ##?# ###???????????? | | ???????????## """###### ##?? #???????????? | | ????????????##""""????# < #??? ##???????????? | | ?????????????#"""" ???### ##??? #????????????? | | ?????????????#" #???#"" ##?## ##????????????? | | ??????????????" ?#???#""# ### ##?????????????? | | ??????????????#""#?????## ##??????????????? | | ??????????????#""#??????#### #####????????????? | | ??????????????# ##????????## # ##???????????? | | ????????????### ##???????## # ##??????????? | | ?????????#??# ###????## #??????????? | +----------------------------------------------------+ Best States ------------- Heat Dissipation 25 Energy Generation 10 Energy Capacity 250 Matter Stores 300 Matter Capacity 300 Sight Range 16 Terrain Scan Range 16 Terrain Scan Density 10 Armor Coverage 150 Evasion (%) 55 Recoil Reduction 2 Item Schematics ----------------- Huge Storage Unit | -10/Materials | Hacked Robot Schematics ------------------ None Fabricated ------------ Nothing Alien Tech Used ----------------- None Achievements -------------- None Challenges ------------ None Game ------ Seed ThermalRecoilPod Manual? 0 Play Time 00:20:38 Cumulative 107.8 hours Start 2024.09.18 @ 13:27:13 End 2024.09.18 @ 13:43:24 Sessions 1 Manual Loads 0 Difficulty Rogue Special Mode None Game No. 147 Rogue 147 Adventurer 0 Explorer 0 Win Type - Total 1 Types 1/0/0/0/0/0/0/0/0 Lore% 22 Gallery% 56 Achievement% 44 Wizard Run 0 Options --------- Layout 0 ASCII 0 Keyboard 0 Movement Mouse Keybinds 1 Fullscreen 1 Font 18/TerminusBold Map View 76x50 Zoom Use 0% Tactical HUD 1 Map Filters NONE Filters NONE Steam 1 RUN: 86ac3b0c-296a-4c44-92bc-e810ebf7280c